Workbook

Sheet Sheet1
A1: 2022年固镇县中小学新任教师公开招聘笔试成绩
A2: 准考证号 | B2: 招聘单位 | C2: 报考岗位 | D2: 岗位代码 | E2: 《学科专业知识》 | F2: 《教育综合知识》 | G2: 政策加分 | H2: 笔试总成绩
A3: 22070127214 | B3: 固镇县教育体育局 | C3: 初中地理 | D3: 070104 | E3: 78 | F3: 99 | H3: =E3*0.6+F3*0.4+G3 -> 86.40
A4: 22070127217 | B4: 固镇县教育体育局 | C4: 初中地理 | D4: 070104 | E4: 82 | F4: 86 | H4: 83.60
A5: 22070127218 | B5: 固镇县教育体育局 | C5: 初中地理 | D5: 070104 | E5: 81 | F5: 81.5 | H5: 81.20
A6: 22070302703 | B6: 固镇县教育体育局 | C6: 初中地理 | D6: 070104 | E6: 80.5 | F6: 82 | H6: 81.10
A7: 22070302702 | B7: 固镇县教育体育局 | C7: 初中地理 | D7: 070104 | E7: 80 | F7: 78.5 | H7: 79.40
A8: 22070302705 | B8: 固镇县教育体育局 | C8: 初中地理 | D8: 070104 | E8: 80 | F8: 74 | H8: 77.60
A9: 22070127211 | B9: 固镇县教育体育局 | C9: 初中地理 | D9: 070104 | E9: 70.5 | F9: 85 | H9: 76.30
A10: 22070127213 | B10: 固镇县教育体育局 | C10: 初中地理 | D10: 070104 | E10: 71.5 | F10: 73.5 | H10: 72.30
A11: 22070127212 | B11: 固镇县教育体育局 | C11: 初中地理 | D11: 070104 | E11: 0 | F11: 0 | H11: 0.00
A12: 22070127215 | B12: 固镇县教育体育局 | C12: 初中地理 | D12: 070104 | E12: 0 | F12: 0 | H12: 0.00
A13: 22070127216 | B13: 固镇县教育体育局 | C13: 初中地理 | D13: 070104 | E13: 0 | F13: 0 | H13: 0.00
A14: 22070127219 | B14: 固镇县教育体育局 | C14: 初中地理 | D14: 070104 | E14: 0 | F14: 0 | H14: 0.00
A15: 22070302704 | B15: 固镇县教育体育局 | C15: 初中地理 | D15: 070104 | E15: 0 | F15: 0 | H15: 0.00
A16: 22070302706 | B16: 固镇县教育体育局 | C16: 初中地理 | D16: 070104 | E16: 0 | F16: 0 | H16: 0.00
A17: 22070302707 | B17: 固镇县教育体育局 | C17: 初中地理 | D17: 070104 | E17: 0 | F17: 0 | H17: 0.00
A18: 22070302708 | B18: 固镇县教育体育局 | C18: 初中地理 | D18: 070104 | E18: 0 | F18: 0 | H18: 0.00
A19: 22070127616 | B19: 固镇县教育体育局 | C19: 初中化学 | D19: 070106 | E19: 94.5 | F19: 86 | H19: 91.10
A20: 22070127509 | B20: 固镇县教育体育局 | C20: 初中化学 | D20: 070106 | E20: 84 | F20: 98.5 | H20: 89.80
A21: 22070127610 | B21: 固镇县教育体育局 | C21: 初中化学 | D21: 070106 | E21: 89.5 | F21: 87 | H21: 88.50
A22: 22070302517 | B22: 固镇县教育体育局 | C22: 初中化学 | D22: 070106 | E22: 97.5 | F22: 74.5 | H22: 88.30
A23: 22070403614 | B23: 固镇县教育体育局 | C23: 初中化学 | D23: 070106 | E23: 96.5 | F23: 75.5 | H23: 88.10
A24: 22070127605 | B24: 固镇县教育体育局 | C24: 初中化学 | D24: 070106 | E24: 83 | F24: 93.5 | H24: 87.20
A25: 22070302512 | B25: 固镇县教育体育局 | C25: 初中化学 | D25: 070106 | E25: 87 | F25: 86.5 | H25: 86.80
A26: 22070302516 | B26: 固镇县教育体育局 | C26: 初中化学 | D26: 070106 | E26: 83.5 | F26: 90 | H26: 86.10
A27: 22070127603 | B27: 固镇县教育体育局 | C27: 初中化学 | D27: 070106 | E27: 80.5 | F27: 89.5 | H27: 84.10
A28: 22070127518 | B28: 固镇县教育体育局 | C28: 初中化学 | D28: 070106 | E28: 77 | F28: 88.5 | H28: 81.60
A29: 22070302509 | B29: 固镇县教育体育局 | C29: 初中化学 | D29: 070106 | E29: 81 | F29: 81 | H29: 81.00
A30: 22070302515 | B30: 固镇县教育体育局 | C30: 初中化学 | D30: 070106 | E30: 91.5 | F30: 65 | H30: 80.90
A31: 22070302513 | B31: 固镇县教育体育局 | C31: 初中化学 | D31: 070106 | E31: 72.5 | F31: 89 | H31: 79.10
A32: 22070403617 | B32: 固镇县教育体育局 | C32: 初中化学 | D32: 070106 | E32: 71.5 | F32: 89.5 | H32: 78.70
A33: 22070127608 | B33: 固镇县教育体育局 | C33: 初中化学 | D33: 070106 | E33: 84.5 | F33: 69.5 | H33: 78.50
A34: 22070302510 | B34: 固镇县教育体育局 | C34: 初中化学 | D34: 070106 | E34: 73 | F34: 84.5 | H34: 77.60
A35: 22070127513 | B35: 固镇县教育体育局 | C35: 初中化学 | D35: 070106 | E35: 78 | F35: 76.5 | H35: 77.40
A36: 22070403615 | B36: 固镇县教育体育局 | C36: 初中化学 | D36: 070106 | E36: 74 | F36: 82.5 | H36: 77.40
A37: 22070127614 | B37: 固镇县教育体育局 | C37: 初中化学 | D37: 070106 | E37: 65 | F37: 93.5 | H37: 76.40
A38: 22070127612 | B38: 固镇县教育体育局 | C38: 初中化学 | D38: 070106 | E38: 73 | F38: 76.5 | H38: 74.40
A39: 22070127609 | B39: 固镇县教育体育局 | C39: 初中化学 | D39: 070106 | E39: 68 | F39: 83 | H39: 74.00
A40: 22070127524 | B40: 固镇县教育体育局 | C40: 初中化学 | D40: 070106 | E40: 67 | F40: 80.5 | H40: 72.40
A41: 22070403616 | B41: 固镇县教育体育局 | C41: 初中化学 | D41: 070106 | E41: 66.5 | F41: 79 | H41: 71.50
A42: 22070127508 | B42: 固镇县教育体育局 | C42: 初中化学 | D42: 070106 | E42: 64.5 | F42: 70.5 | H42: 66.90
A43: 22070127512 | B43: 固镇县教育体育局 | C43: 初中化学 | D43: 070106 | E43: 65.5 | F43: 68.5 | H43: 66.70
A44: 22070127510 | B44: 固镇县教育体育局 | C44: 初中化学 | D44: 070106 | E44: 57 | F44: 77.5 | H44: 65.20
A45: 22070127525 | B45: 固镇县教育体育局 | C45: 初中化学 | D45: 070106 | E45: 54 | F45: 80 | H45: 64.40
A46: 22070127615 | B46: 固镇县教育体育局 | C46: 初中化学 | D46: 070106 | E46: 57.5 | F46: 74.5 | H46: 64.30
A47: 22070127519 | B47: 固镇县教育体育局 | C47: 初中化学 | D47: 070106 | E47: 47.5 | F47: 71.5 | H47: 57.10
A48: 22070302511 | B48: 固镇县教育体育局 | C48: 初中化学 | D48: 070106 | E48: 47.5 | F48: 65.5 | H48: 54.70
A49: 22070127507 | B49: 固镇县教育体育局 | C49: 初中化学 | D49: 070106 | E49: 0 | F49: 0 | H49: 0.00
A50: 22070127511 | B50: 固镇县教育体育局 | C50: 初中化学 | D50: 070106 | E50: 0 | F50: 0 | H50: 0.00
A51: 22070127514 | B51: 固镇县教育体育局 | C51: 初中化学 | D51: 070106 | E51: 0 | F51: 0 | H51: 0.00
A52: 22070127515 | B52: 固镇县教育体育局 | C52: 初中化学 | D52: 070106 | E52: 0 | F52: 0 | H52: 0.00
A53: 22070127516 | B53: 固镇县教育体育局 | C53: 初中化学 | D53: 070106 | E53: 0 | F53: 0 | H53: 0.00
A54: 22070127517 | B54: 固镇县教育体育局 | C54: 初中化学 | D54: 070106 | E54: 0 | F54: 0 | H54: 0.00
A55: 22070127520 | B55: 固镇县教育体育局 | C55: 初中化学 | D55: 070106 | E55: 0 | F55: 0 | H55: 0.00
A56: 22070127521 | B56: 固镇县教育体育局 | C56: 初中化学 | D56: 070106 | E56: 0 | F56: 0 | H56: 0.00
A57: 22070127522 | B57: 固镇县教育体育局 | C57: 初中化学 | D57: 070106 | E57: 0 | F57: 0 | H57: 0.00
A58: 22070127523 | B58: 固镇县教育体育局 | C58: 初中化学 | D58: 070106 | E58: 0 | F58: 0 | H58: 0.00
A59: 22070127526 | B59: 固镇县教育体育局 | C59: 初中化学 | D59: 070106 | E59: 0 | F59: 0 | H59: 0.00
A60: 22070127527 | B60: 固镇县教育体育局 | C60: 初中化学 | D60: 070106 | E60: 0 | F60: 0 | H60: 0.00
A61: 22070127528 | B61: 固镇县教育体育局 | C61: 初中化学 | D61: 070106 | E61: 0 | F61: 0 | H61: 0.00
A62: 22070127529 | B62: 固镇县教育体育局 | C62: 初中化学 | D62: 070106 | E62: 0 | F62: 0 | H62: 0.00
A63: 22070127530 | B63: 固镇县教育体育局 | C63: 初中化学 | D63: 070106 | E63: 0 | F63: 0 | H63: 0.00
A64: 22070127601 | B64: 固镇县教育体育局 | C64: 初中化学 | D64: 070106 | E64: 0 | F64: 0 | H64: 0.00
A65: 22070127602 | B65: 固镇县教育体育局 | C65: 初中化学 | D65: 070106 | E65: 0 | F65: 0 | H65: 0.00
A66: 22070127604 | B66: 固镇县教育体育局 | C66: 初中化学 | D66: 070106 | E66: 0 | F66: 0 | H66: 0.00
A67: 22070127606 | B67: 固镇县教育体育局 | C67: 初中化学 | D67: 070106 | E67: 0 | F67: 0 | H67: =E67*0.6+F67*0.4+G67 -> 0.00
A68: 22070127607 | B68: 固镇县教育体育局 | C68: 初中化学 | D68: 070106 | E68: 0 | F68: 0 | H68: 0.00
A69: 22070127611 | B69: 固镇县教育体育局 | C69: 初中化学 | D69: 070106 | E69: 0 | F69: 0 | H69: 0.00
A70: 22070127613 | B70: 固镇县教育体育局 | C70: 初中化学 | D70: 070106 | E70: 0 | F70: 0 | H70: 0.00
A71: 22070302514 | B71: 固镇县教育体育局 | C71: 初中化学 | D71: 070106 | E71: 0 | F71: 0 | H71: 0.00
A72: 22070128920 | B72: 固镇县教育体育局 | C72: 初中生物 | D72: 070105 | E72: 76.5 | F72: 83 | H72: 79.10
A73: 22070128917 | B73: 固镇县教育体育局 | C73: 初中生物 | D73: 070105 | E73: 80 | F73: 75 | H73: 78.00
A74: 22070128921 | B74: 固镇县教育体育局 | C74: 初中生物 | D74: 070105 | E74: 65.5 | F74: 76.5 | H74: 69.90
A75: 22070128916 | B75: 固镇县教育体育局 | C75: 初中生物 | D75: 070105 | E75: 0 | F75: 0 | H75: 0.00
A76: 22070128918 | B76: 固镇县教育体育局 | C76: 初中生物 | D76: 070105 | E76: 0 | F76: 0 | H76: 0.00
A77: 22070128919 | B77: 固镇县教育体育局 | C77: 初中生物 | D77: 070105 | E77: 0 | F77: 0 | H77: 0.00
A78: 22070403702 | B78: 固镇县教育体育局 | C78: 初中生物 | D78: 070105 | E78: 0 | F78: 0 | H78: 0.00
A79: 22070129108 | B79: 固镇县教育体育局 | C79: 初中数学 | D79: 070101 | E79: 109.5 | F79: 97 | H79: 104.50
A80: 22070129106 | B80: 固镇县教育体育局 | C80: 初中数学 | D80: 070101 | E80: 109 | F80: 89.5 | H80: 101.20
A81: 22070129103 | B81: 固镇县教育体育局 | C81: 初中数学 | D81: 070101 | E81: 85 | F81: 99 | H81: 90.60
A82: 22070129122 | B82: 固镇县教育体育局 | C82: 初中数学 | D82: 070101 | E82: 92.5 | F82: 81.5 | H82: 88.10
A83: 22070129028 | B83: 固镇县教育体育局 | C83: 初中数学 | D83: 070101 | E83: 95.5 | F83: 72 | H83: 86.10
A84: 22070302716 | B84: 固镇县教育体育局 | C84: 初中数学 | D84: 070101 | E84: 87 | F84: 79.5 | H84: 84.00
A85: 22070302717 | B85: 固镇县教育体育局 | C85: 初中数学 | D85: 070101 | E85: 86 | F85: 81 | H85: 84.00
A86: 22070302719 | B86: 固镇县教育体育局 | C86: 初中数学 | D86: 070101 | E86: 75 | F86: 96.5 | H86: 83.60
A87: 22070129110 | B87: 固镇县教育体育局 | C87: 初中数学 | D87: 070101 | E87: 83 | F87: 83 | H87: 83.00
A88: 22070129113 | B88: 固镇县教育体育局 | C88: 初中数学 | D88: 070101 | E88: 82.5 | F88: 77 | H88: 80.30
A89: 22070302714 | B89: 固镇县教育体育局 | C89: 初中数学 | D89: 070101 | E89: 71.5 | F89: 83 | H89: 76.10
A90: 22070129124 | B90: 固镇县教育体育局 | C90: 初中数学 | D90: 070101 | E90: 71.5 | F90: 79 | H90: 74.50
A91: 22070204613 | B91: 固镇县教育体育局 | C91: 初中数学 | D91: 070101 | E91: 76 | F91: 71.5 | H91: 74.20
A92: 22070129121 | B92: 固镇县教育体育局 | C92: 初中数学 | D92: 070101 | E92: 79.5 | F92: 62.5 | H92: 72.70
A93: 22070302718 | B93: 固镇县教育体育局 | C93: 初中数学 | D93: 070101 | E93: 62 | F93: 77.5 | H93: 68.20
A94: 22070129127 | B94: 固镇县教育体育局 | C94: 初中数学 | D94: 070101 | E94: 58 | F94: 66.5 | H94: 61.40
A95: 22070302710 | B95: 固镇县教育体育局 | C95: 初中数学 | D95: 070101 | E95: 40 | F95: 66 | H95: 50.40
A96: 22070302715 | B96: 固镇县教育体育局 | C96: 初中数学 | D96: 070101 | E96: 38.5 | F96: 68 | H96: 50.30
A97: 22070129025 | B97: 固镇县教育体育局 | C97: 初中数学 | D97: 070101 | E97: 0 | F97: 0 | H97: 0.00
A98: 22070129026 | B98: 固镇县教育体育局 | C98: 初中数学 | D98: 070101 | E98: 0 | F98: 0 | H98: 0.00
A99: 22070129027 | B99: 固镇县教育体育局 | C99: 初中数学 | D99: 070101 | E99: 0 | F99: 0 | H99: 0.00
A100: 22070129029 | B100: 固镇县教育体育局 | C100: 初中数学 | D100: 070101 | E100: 0 | F100: 0 | H100: 0.00
A101: 22070129030 | B101: 固镇县教育体育局 | C101: 初中数学 | D101: 070101 | E101: 0 | F101: 0 | H101: 0.00
A102: 22070129101 | B102: 固镇县教育体育局 | C102: 初中数学 | D102: 070101 | E102: 0 | F102: 0 | H102: 0.00
A103: 22070129102 | B103: 固镇县教育体育局 | C103: 初中数学 | D103: 070101 | E103: 0 | F103: 0 | H103: 0.00
A104: 22070129104 | B104: 固镇县教育体育局 | C104: 初中数学 | D104: 070101 | E104: 0 | F104: 0 | H104: 0.00
A105: 22070129105 | B105: 固镇县教育体育局 | C105: 初中数学 | D105: 070101 | E105: 0 | F105: 0 | H105: 0.00
A106: 22070129107 | B106: 固镇县教育体育局 | C106: 初中数学 | D106: 070101 | E106: 0 | F106: 0 | H106: 0.00
A107: 22070129109 | B107: 固镇县教育体育局 | C107: 初中数学 | D107: 070101 | E107: 0 | F107: 0 | H107: 0.00
A108: 22070129111 | B108: 固镇县教育体育局 | C108: 初中数学 | D108: 070101 | E108: 0 | F108: 0 | H108: 0.00
A109: 22070129112 | B109: 固镇县教育体育局 | C109: 初中数学 | D109: 070101 | E109: 0 | F109: 0 | H109: 0.00
A110: 22070129114 | B110: 固镇县教育体育局 | C110: 初中数学 | D110: 070101 | E110: 0 | F110: 0 | H110: 0.00
A111: 22070129115 | B111: 固镇县教育体育局 | C111: 初中数学 | D111: 070101 | E111: 0 | F111: 0 | H111: 0.00
A112: 22070129116 | B112: 固镇县教育体育局 | C112: 初中数学 | D112: 070101 | E112: 0 | F112: 0 | H112: 0.00
A113: 22070129117 | B113: 固镇县教育体育局 | C113: 初中数学 | D113: 070101 | E113: 0 | F113: 0 | H113: 0.00
A114: 22070129118 | B114: 固镇县教育体育局 | C114: 初中数学 | D114: 070101 | E114: 0 | F114: 0 | H114: 0.00
A115: 22070129119 | B115: 固镇县教育体育局 | C115: 初中数学 | D115: 070101 | E115: 0 | F115: 0 | H115: 0.00
A116: 22070129120 | B116: 固镇县教育体育局 | C116: 初中数学 | D116: 070101 | E116: 0 | F116: 0 | H116: 0.00
A117: 22070129123 | B117: 固镇县教育体育局 | C117: 初中数学 | D117: 070101 | E117: 0 | F117: 0 | H117: 0.00
A118: 22070129125 | B118: 固镇县教育体育局 | C118: 初中数学 | D118: 070101 | E118: 0 | F118: 0 | H118: 0.00
A119: 22070129126 | B119: 固镇县教育体育局 | C119: 初中数学 | D119: 070101 | E119: 0 | F119: 0 | H119: 0.00
A120: 22070129128 | B120: 固镇县教育体育局 | C120: 初中数学 | D120: 070101 | E120: 0 | F120: 0 | H120: 0.00
A121: 22070302711 | B121: 固镇县教育体育局 | C121: 初中数学 | D121: 070101 | E121: 0 | F121: 0 | H121: 0.00
A122: 22070302712 | B122: 固镇县教育体育局 | C122: 初中数学 | D122: 070101 | E122: 0 | F122: 0 | H122: 0.00
A123: 22070302713 | B123: 固镇县教育体育局 | C123: 初中数学 | D123: 070101 | E123: 0 | F123: 0 | H123: 0.00
A124: 22070302720 | B124: 固镇县教育体育局 | C124: 初中数学 | D124: 070101 | E124: 0 | F124: 0 | H124: 0.00
A125: 22070302721 | B125: 固镇县教育体育局 | C125: 初中数学 | D125: 070101 | E125: 0 | F125: 0 | H125: 0.00
A126: 22070302722 | B126: 固镇县教育体育局 | C126: 初中数学 | D126: 070101 | E126: 0 | F126: 0 | H126: 0.00
A127: 22070130527 | B127: 固镇县教育体育局 | C127: 初中体育 | D127: 070107 | E127: 74 | F127: 63.5 | H127: 69.80
A128: 22070302605 | B128: 固镇县教育体育局 | C128: 初中体育 | D128: 070107 | E128: 67.5 | F128: 71 | H128: 68.90
A129: 22070302606 | B129: 固镇县教育体育局 | C129: 初中体育 | D129: 070107 | E129: 62.5 | F129: 68.5 | H129: 64.90
A130: 22070130525 | B130: 固镇县教育体育局 | C130: 初中体育 | D130: 070107 | E130: 59 | F130: 59.5 | H130: 59.20
A131: 22070130519 | B131: 固镇县教育体育局 | C131: 初中体育 | D131: 070107 | E131: 0 | F131: 0 | H131: =E131*0.6+F131*0.4+G131 -> 0.00
A132: 22070130520 | B132: 固镇县教育体育局 | C132: 初中体育 | D132: 070107 | E132: 0 | F132: 0 | H132: 0.00
A133: 22070130521 | B133: 固镇县教育体育局 | C133: 初中体育 | D133: 070107 | E133: 0 | F133: 0 | H133: 0.00
A134: 22070130522 | B134: 固镇县教育体育局 | C134: 初中体育 | D134: 070107 | E134: 0 | F134: 0 | H134: 0.00
A135: 22070130523 | B135: 固镇县教育体育局 | C135: 初中体育 | D135: 070107 | E135: 0 | F135: 0 | H135: 0.00
A136: 22070130524 | B136: 固镇县教育体育局 | C136: 初中体育 | D136: 070107 | E136: 0 | F136: 0 | H136: 0.00
A137: 22070130526 | B137: 固镇县教育体育局 | C137: 初中体育 | D137: 070107 | E137: 0 | F137: 0 | H137: 0.00
A138: 22070130528 | B138: 固镇县教育体育局 | C138: 初中体育 | D138: 070107 | E138: 0 | F138: 0 | H138: 0.00
A139: 22070130529 | B139: 固镇县教育体育局 | C139: 初中体育 | D139: 070107 | E139: 0 | F139: 0 | H139: 0.00
A140: 22070130530 | B140: 固镇县教育体育局 | C140: 初中体育 | D140: 070107 | E140: 0 | F140: 0 | H140: 0.00
A141: 22070130601 | B141: 固镇县教育体育局 | C141: 初中体育 | D141: 070107 | E141: 0 | F141: 0 | H141: 0.00
A142: 22070130729 | B142: 固镇县教育体育局 | C142: 初中物理 | D142: 070103 | E142: 95.5 | F142: 87.5 | H142: 92.30
A143: 22070205206 | B143: 固镇县教育体育局 | C143: 初中物理 | D143: 070103 | E143: 83.5 | F143: 90.5 | H143: 86.30
A144: 22070302609 | B144: 固镇县教育体育局 | C144: 初中物理 | D144: 070103 | E144: 75.5 | F144: 88.5 | H144: 80.70
A145: 22070302608 | B145: 固镇县教育体育局 | C145: 初中物理 | D145: 070103 | E145: 72.5 | F145: 86.5 | H145: 78.10
A146: 22070130805 | B146: 固镇县教育体育局 | C146: 初中物理 | D146: 070103 | E146: 73.5 | F146: 77.5 | H146: 75.10
A147: 22070302611 | B147: 固镇县教育体育局 | C147: 初中物理 | D147: 070103 | E147: 61.5 | F147: 80 | H147: 68.90
A148: 22070205207 | B148: 固镇县教育体育局 | C148: 初中物理 | D148: 070103 | E148: 63.5 | F148: 65 | H148: 64.10
A149: 22070130809 | B149: 固镇县教育体育局 | C149: 初中物理 | D149: 070103 | E149: 57 | F149: 71.5 | H149: 62.80
A150: 22070130727 | B150: 固镇县教育体育局 | C150: 初中物理 | D150: 070103 | E150: 0 | F150: 0 | H150: 0.00
A151: 22070130728 | B151: 固镇县教育体育局 | C151: 初中物理 | D151: 070103 | E151: 0 | F151: 0 | H151: 0.00
A152: 22070130730 | B152: 固镇县教育体育局 | C152: 初中物理 | D152: 070103 | E152: 0 | F152: 0 | H152: 0.00
A153: 22070130801 | B153: 固镇县教育体育局 | C153: 初中物理 | D153: 070103 | E153: 0 | F153: 0 | H153: 0.00
A154: 22070130802 | B154: 固镇县教育体育局 | C154: 初中物理 | D154: 070103 | E154: 0 | F154: 0 | H154: 0.00
A155: 22070130803 | B155: 固镇县教育体育局 | C155: 初中物理 | D155: 070103 | E155: 0 | F155: 0 | H155: 0.00
A156: 22070130804 | B156: 固镇县教育体育局 | C156: 初中物理 | D156: 070103 | E156: 0 | F156: 0 | H156: 0.00
A157: 22070130806 | B157: 固镇县教育体育局 | C157: 初中物理 | D157: 070103 | E157: 0 | F157: 0 | H157: 0.00
A158: 22070130807 | B158: 固镇县教育体育局 | C158: 初中物理 | D158: 070103 | E158: 0 | F158: 0 | H158: 0.00
A159: 22070130808 | B159: 固镇县教育体育局 | C159: 初中物理 | D159: 070103 | E159: 0 | F159: 0 | H159: 0.00
A160: 22070302610 | B160: 固镇县教育体育局 | C160: 初中物理 | D160: 070103 | E160: 0 | F160: 0 | H160: 0.00
A161: 22070131330 | B161: 固镇县教育体育局 | C161: 初中英语 | D161: 070102 | E161: 106.5 | F161: 103.5 | H161: 105.30
A162: 22070302810 | B162: 固镇县教育体育局 | C162: 初中英语 | D162: 070102 | E162: 104.5 | F162: 99 | H162: 102.30
A163: 22070204208 | B163: 固镇县教育体育局 | C163: 初中英语 | D163: 070102 | E163: 104.5 | F163: 93.5 | H163: 100.10
A164: 22070131404 | B164: 固镇县教育体育局 | C164: 初中英语 | D164: 070102 | E164: 102.5 | F164: 95.5 | H164: 99.70
A165: 22070131229 | B165: 固镇县教育体育局 | C165: 初中英语 | D165: 070102 | E165: 107.5 | F165: 86.5 | H165: 99.10
A166: 22070131409 | B166: 固镇县教育体育局 | C166: 初中英语 | D166: 070102 | E166: 105 | F166: 90 | H166: 99.00
A167: 22070131309 | B167: 固镇县教育体育局 | C167: 初中英语 | D167: 070102 | E167: 96.5 | F167: 102 | H167: 98.70
A168: 22070302809 | B168: 固镇县教育体育局 | C168: 初中英语 | D168: 070102 | E168: 104 | F168: 88 | H168: 97.60
A169: 22070131329 | B169: 固镇县教育体育局 | C169: 初中英语 | D169: 070102 | E169: 101.5 | F169: 89 | H169: 96.50
A170: 22070131221 | B170: 固镇县教育体育局 | C170: 初中英语 | D170: 070102 | E170: 104 | F170: 84 | H170: 96.00
A171: 22070131418 | B171: 固镇县教育体育局 | C171: 初中英语 | D171: 070102 | E171: 100.5 | F171: 88.5 | H171: 95.70
A172: 22070302818 | B172: 固镇县教育体育局 | C172: 初中英语 | D172: 070102 | E172: 103 | F172: 84.5 | H172: 95.60
A173: 22070131311 | B173: 固镇县教育体育局 | C173: 初中英语 | D173: 070102 | E173: 93 | F173: 97.5 | H173: 94.80
A174: 22070131402 | B174: 固镇县教育体育局 | C174: 初中英语 | D174: 070102 | E174: 95.5 | F174: 90.5 | H174: 93.50
A175: 22070131218 | B175: 固镇县教育体育局 | C175: 初中英语 | D175: 070102 | E175: 97 | F175: 87 | H175: 93.00
A176: 22070302819 | B176: 固镇县教育体育局 | C176: 初中英语 | D176: 070102 | E176: 98 | F176: 83 | H176: 92.00
A177: 22070204206 | B177: 固镇县教育体育局 | C177: 初中英语 | D177: 070102 | E177: 97 | F177: 84.5 | H177: 92.00
A178: 22070131414 | B178: 固镇县教育体育局 | C178: 初中英语 | D178: 070102 | E178: 99 | F178: 80.5 | H178: 91.60
A179: 22070131214 | B179: 固镇县教育体育局 | C179: 初中英语 | D179: 070102 | E179: 93.5 | F179: 86 | H179: 90.50
A180: 22070204205 | B180: 固镇县教育体育局 | C180: 初中英语 | D180: 070102 | E180: 98.5 | F180: 77 | H180: 89.90
A181: 22070131502 | B181: 固镇县教育体育局 | C181: 初中英语 | D181: 070102 | E181: 89.5 | F181: 90.5 | H181: 89.90
A182: 22070131220 | B182: 固镇县教育体育局 | C182: 初中英语 | D182: 070102 | E182: 88 | F182: 92 | H182: 89.60
A183: 22070131312 | B183: 固镇县教育体育局 | C183: 初中英语 | D183: 070102 | E183: 91.5 | F183: 85 | H183: 88.90
A184: 22070131307 | B184: 固镇县教育体育局 | C184: 初中英语 | D184: 070102 | E184: 89.5 | F184: 87.5 | H184: 88.70
A185: 22070131215 | B185: 固镇县教育体育局 | C185: 初中英语 | D185: 070102 | E185: 93.5 | F185: 81 | H185: 88.50
A186: 22070131305 | B186: 固镇县教育体育局 | C186: 初中英语 | D186: 070102 | E186: 91 | F186: 84 | H186: 88.20
A187: 22070302813 | B187: 固镇县教育体育局 | C187: 初中英语 | D187: 070102 | E187: 98 | F187: 72.5 | H187: 87.80
A188: 22070131228 | B188: 固镇县教育体育局 | C188: 初中英语 | D188: 070102 | E188: 86.5 | F188: 87.5 | H188: 86.90
A189: 22070302812 | B189: 固镇县教育体育局 | C189: 初中英语 | D189: 070102 | E189: 87 | F189: 86.5 | H189: 86.80
A190: 22070131222 | B190: 固镇县教育体育局 | C190: 初中英语 | D190: 070102 | E190: 89.5 | F190: 82 | H190: 86.50
A191: 22070131303 | B191: 固镇县教育体育局 | C191: 初中英语 | D191: 070102 | E191: 89 | F191: 81.5 | H191: 86.00
A192: 22070131430 | B192: 固镇县教育体育局 | C192: 初中英语 | D192: 070102 | E192: 80 | F192: 95 | H192: 86.00
A193: 22070302806 | B193: 固镇县教育体育局 | C193: 初中英语 | D193: 070102 | E193: 90.5 | F193: 78 | H193: 85.50
A194: 22070131227 | B194: 固镇县教育体育局 | C194: 初中英语 | D194: 070102 | E194: 85 | F194: 85 | H194: 85.00
A195: 22070131410 | B195: 固镇县教育体育局 | C195: 初中英语 | D195: 070102 | E195: 86.5 | F195: 82.5 | H195: =E195*0.6+F195*0.4+G195 -> 84.90
A196: 22070302805 | B196: 固镇县教育体育局 | C196: 初中英语 | D196: 070102 | E196: 82.5 | F196: 87 | H196: 84.30
A197: 22070131426 | B197: 固镇县教育体育局 | C197: 初中英语 | D197: 070102 | E197: 85 | F197: 81.5 | H197: 83.60
A198: 22070131509 | B198: 固镇县教育体育局 | C198: 初中英语 | D198: 070102 | E198: 82.5 | F198: 77.5 | H198: 80.50
A199: 22070131515 | B199: 固镇县教育体育局 | C199: 初中英语 | D199: 070102 | E199: 85 | F199: 71.5 | H199: 79.60
A200: 22070302804 | B200: 固镇县教育体育局 | C200: 初中英语 | D200: 070102 | E200: 83 | F200: 73.5 | H200: 79.20
... 2785 more rows
